bitfinex/quotes_ETHUSD_20250504
["timestamp","ask_amount","ask_price","bid_price","bid_amount"]
[1746339997996,0.50550458,1843.7,1843.4,7.00786549]
[1746339998175,0.50550458,1843.7,1843.5,4.554]
[1746339998494,0.50550458,1843.6,1843.5,4.554]
[1746339998895,0.50550458,1843.6,1843.5,9.97846433]
[1746339999092,0.50550458,1843.6,1843.5,4.554]
[1746339999283,0.50550458,1843.6,1843.5,9.97846433]
[1746340002568,0.50550458,1843.6,1843.5,4.554]
[1746340002773,0.50550458,1843.6,1843.5,9.97846433]
[1746340003763,0.50550458,1843.6,1843.5,12.46600409]
[1746340004703,0.50550458,1843.6,1843.5,4.554]
[1746340007976,5.92967468,1843.6,1843.5,4.554]
[1746340008733,0.50550458,1843.6,1843.5,4.554]
[1746340009423,0.50550458,1843.6,1843.5,5.3429]
[1746340009571,0.50550458,1843.6,1843.5,4.554]
[1746340010921,5.92967468,1843.6,1843.5,4.554]
[1746340011290,0.50550458,1843.6,1843.5,4.554]
[1746340012421,5.92967468,1843.6,1843.5,4.554]
[1746340013001,6.60391215,1843.6,1843.4,4.551]
[1746340013496,5.92996891,1843.5,1843.4,4.551]
[1746340013998,5.93013217,1843.5,1843.3,4.551]
[1746340014193,0.50550458,1843.5,1843.3,4.551]
[1746340014404,0.50550458,1843.5,1843.3,9.97592209]
[1746340014623,0.50550458,1843.4,1843.3,12.50601241]
[1746340014923,0.50550458,1843.4,1843.3,14.08934034]
[1746340016529,0.50550458,1843.4,1843.3,8.6644866]
[1746340016819,0.50550458,1843.4,1843.3,14.08953949]
[1746340022996,11.64979495,1843.9,1843.4,10.8489819]
[1746340023227,6.22621371,1843.9,1843.5,7.77942237]
[1746340023531,0.50713991,1843.8,1843.5,7.77942237]
[1746340023758,0.50713991,1843.8,1843.6,5.42400391]
[1746340023949,0.50713991,1843.7,1843.6,5.42400391]
[1746340024299,0.50713991,1843.7,1843.6,6.24993737]
[1746340024522,0.50713991,1843.7,1843.6,6.19570391]
[1746340024831,6.22551303,1844.1,1843.7,5.42376827]
[1746340025027,7.39044273,1844.1,1843.8,4.552]
[1746340025193,1.9677297,1844.1,1843.8,9.97552837]
[1746340025394,0.5070685,1844.0,1843.8,9.97552837]
[1746340025820,0.5070685,1843.9,1843.8,9.97552837]
[1746340026324,0.5070685,1843.9,1843.8,10.75892837]
[1746340026522,0.5070685,1843.9,1843.8,12.53553793]
[1746340026708,0.00112824,1844.2,1843.9,5.42301406]
[1746340026921,0.00112824,1844.2,1843.9,7.00634199]
[1746340027409,0.50674105,1844.1,1843.9,7.00634199]
[1746340027619,0.50674105,1844.1,1843.9,12.42942234]
[1746340027916,0.50674105,1844.0,1843.9,7.00634199]
[1746340028130,0.50674105,1844.0,1843.9,8.96052465]
[1746340029016,0.00112824,1844.2,1843.9,8.96052465]
[1746340029206,0.00112824,1844.2,1844.0,5.42292035]
[1746340029733,0.5062119,1844.1,1844.0,5.42292035]
[1746340031254,0.5062119,1844.1,1843.9,8.96052465]
[1746340031451,0.5062119,1844.1,1844.0,5.42299349]
[1746340033764,0.00112824,1844.2,1843.9,8.9607027]
[1746340034637,0.00112824,1844.2,1843.9,8.96056711]
[1746340035344,0.50568789,1844.1,1843.9,7.00638445]
[1746340035845,0.00112824,1844.2,1844.1,5.42269941]
[1746340036165,0.50675637,1844.2,1844.0,6.19439349]
[1746340036733,0.00112824,1844.2,1844.0,6.19439349]
[1746340038260,0.00112824,1844.2,1843.9,7.00659869]
[1746340039182,5.42217855,1844.3,1843.9,7.00659869]
[1746340039629,0.50544762,1844.2,1843.9,7.00659869]
[1746340039831,0.50544762,1844.2,1844.0,5.42284568]
[1746340040026,6.21091788,1844.4,1844.0,5.42284568]
[1746340040230,7.37416476,1844.4,1844.0,5.42284568]
[1746340040431,0.5055121,1844.3,1844.0,5.42284568]
[1746340041158,0.5055121,1844.2,1844.0,5.42284568]
[1746340041667,7.37416476,1844.4,1844.0,5.42284568]
[1746340042369,0.50549207,1844.3,1844.0,5.42284568]
[1746340042967,0.50549207,1844.2,1844.0,10.84563907]
[1746340043174,0.50549207,1844.2,1844.0,6.66569009]
[1746340043334,0.50549207,1844.3,1844.0,6.66569009]
[1746340043534,0.50549207,1844.3,1844.0,5.42279339]
[1746340043778,0.50549207,1844.2,1844.0,5.42279339]
[1746340044437,6.21085212,1844.4,1844.0,5.42279339]
[1746340044637,6.21082908,1844.4,1844.0,5.42278805]
[1746340044838,0.50553234,1844.3,1844.0,5.42278805]
[1746340045372,0.50553234,1844.2,1844.0,5.42278805]
[1746340045765,6.21082908,1844.4,1844.0,5.42278805]
[1746340046265,0.5056048,1844.3,1844.0,5.42278805]
[1746340046470,0.5056048,1844.3,1844.2,7.0057333]
[1746340046642,0.7992,1844.6,1844.3,5.4220779]
[1746340046972,0.7992,1844.6,1844.3,6.2276779]
[1746340047181,0.50572065,1844.5,1844.3,6.2276779]
[1746340047478,0.50572065,1844.4,1844.3,6.2276779]
[1746340048289,0.50572065,1844.4,1844.3,8.00521902]
[1746340048451,6.21985255,1844.8,1844.4,5.42165177]
[1746340048795,6.21985255,1844.8,1844.4,12.42658925]
[1746340048980,0.50582197,1844.7,1844.5,5.42150092]
[1746340049138,0.50582197,1844.7,1844.4,7.00495404]
[1746340049344,0.50582197,1844.6,1844.4,7.00495404]
[1746340049583,0.50582197,1844.6,1844.4,8.50596248]
[1746340049758,0.50582197,1844.5,1844.4,8.50596248]
[1746340050156,0.50582197,1844.5,1844.4,1.50100844]
[1746340050356,0.50582197,1844.5,1844.3,6.22753902]
[1746340050597,5.42192838,1844.4,1844.3,4.542]
[1746340050891,6.22131845,1844.3,1844.2,4.542]
[1746340051469,6.72714042,1844.3,1844.2,4.542]
[1746340051987,1.30502197,1844.3,1844.2,4.542]
[1746340052494,0.50582197,1844.3,1844.2,4.542]
[1746340052989,0.50582197,1844.3,1844.2,11.04142097]
[1746340053355,0.50582197,1844.3,1844.2,4.542]
[1746340054364,5.92793334,1844.3,1844.2,4.542]
[1746340055065,0.50582197,1844.3,1844.2,4.542]
[1746340059501,0.50582197,1844.3,1844.2,9.96440537]
[1746340059674,0.50582197,1844.3,1844.2,4.542]
[1746340061983,0.50582197,1844.3,1844.2,9.96440537]
[1746340063306,0.50582197,1844.3,1844.2,11.79887833]
[1746340063476,0.50582197,1844.3,1844.2,12.57695941]
[1746340069010,0.50582197,1844.3,1844.2,4.542]
[1746340069314,0.50582197,1844.3,1844.0,0.7561]
[1746340069480,6.22808308,1844.3,1843.9,7.0065609]
[1746340069676,6.22808308,1844.3,1844.0,4.539]
[1746340070377,0.50661044,1844.2,1844.1,5.42269941]
[1746340070576,0.50661044,1844.2,1844.0,9.9618865]
[1746340071010,0.50661044,1844.1,1844.0,9.9618865]
[1746340072111,0.50661044,1844.1,1844.0,11.65872218]
[1746340075602,0.50661044,1844.1,1844.0,4.539]
[1746340077383,0.50661044,1844.1,1844.0,9.96199349]
[1746340078618,0.50661044,1844.1,1844.0,10.01621856]
[1746340079594,0.50661044,1844.1,1844.0,10.78249349]
[1746340082122,0.50661044,1844.1,1844.0,4.539]
[1746340085156,0.50661044,1844.1,1844.0,9.96199349]
[1746340085327,0.50661044,1844.1,1844.0,4.539]
[1746340085535,1.27601044,1844.1,1843.7,5.2236847]
[1746340085842,6.69894298,1844.1,1843.9,4.539]
[1746340086148,5.92960393,1844.0,1843.9,4.539]
[1746340086352,0.50661044,1844.0,1843.9,4.539]
[1746340099734,6.59967084,1844.0,1843.8,4.537]
[1746340100226,0.50661044,1843.9,1843.8,4.537]
[1746340101034,0.50661044,1843.9,1843.6,7.00745988]
[1746340101201,0.50661044,1843.9,1843.7,4.537]
[1746340101539,0.50661044,1843.8,1843.7,4.537]
[1746340106759,5.93030477,1843.8,1843.5,0.8296]
[1746340107047,0.50661044,1843.8,1843.7,4.537]
[1746340111451,0.50661044,1843.8,1843.7,9.9608759]
[1746340111850,0.50661044,1843.8,1843.7,11.11529628]
[1746340112145,0.50661044,1843.8,1843.7,11.89359628]
[1746340115420,6.20213557,1844.3,1843.9,5.42327659]
[1746340115628,0.50700662,1844.2,1843.9,5.42327659]
[1746340116151,0.50700662,1844.2,1843.9,5.42308564]
[1746340116343,0.50700662,1844.1,1844.0,5.96530205]
[1746340118015,0.50700662,1844.1,1844.0,7.54862998]
[1746340121133,0.7799,1844.5,1844.1,10.84482044]
[1746340121332,0.7799,1844.5,1844.2,4.537]
[1746340121625,0.50646884,1844.4,1844.2,4.537]
[1746340121819,0.50646884,1844.3,1844.2,4.537]
[1746340122019,0.50646884,1844.3,1844.2,6.07518204]
[1746340122245,0.50646884,1844.3,1844.2,11.49758741]
[1746340122960,0.50646884,1844.3,1844.2,6.07518204]
[1746340124227,0.50646884,1844.3,1844.2,11.49758741]
[1746340127231,0.7799,1844.5,1844.2,11.49758741]
[1746340127649,0.50541188,1844.4,1844.2,6.07518204]
[1746340128057,0.50541188,1844.3,1844.2,6.07518204]
[1746340129755,0.50541188,1844.4,1844.2,6.07518204]
[1746340129959,0.50541188,1844.3,1844.2,4.537]
[1746340133395,5.42259525,1844.2,1844.0,4.532]
[1746340133559,0.8018,1844.1,1844.0,4.532]
[1746340133759,1.30708675,1844.1,1844.0,4.532]
[1746340138186,6.72978616,1844.1,1844.0,4.532]
[1746340138387,7.4027507,1844.1,1844.0,4.532]
[1746340139698,1.17825129,1844.1,1844.0,4.532]
[1746340139900,0.50528675,1844.1,1844.0,4.532]
[1746340140905,0.50528675,1844.1,1844.0,9.95499349]
[1746340141215,0.50528675,1844.1,1844.0,10.73579349]
[1746340141917,0.50528675,1844.1,1844.0,5.3128]
[1746340142212,0.50528675,1844.1,1844.0,10.73579349]
[1746340143030,6.73579497,1844.1,1843.6,5.42397892]
[1746340143314,0.50528675,1844.0,1843.7,11.59338541]
[1746340143500,0.50528675,1844.0,1843.7,12.31995406]
[1746340143809,5.92843754,1844.0,1843.7,6.11532793]
[1746340144137,0.50528675,1843.9,1843.7,6.11419969]
[1746340144692,0.50528675,1843.8,1843.7,6.11419969]
[1746340145013,0.50528675,1843.8,1843.7,4.53087176]
[1746340145185,0.50589251,1843.8,1843.7,4.53087176]
[1746340145918,0.50589251,1843.8,1843.6,6.87954936]
[1746340146084,0.50589251,1843.8,1843.7,5.21995494]
[1746340147433,0.50589251,1843.8,1843.7,6.11183084]
[1746340147611,0.50589251,1843.8,1843.7,10.64383084]
[1746340147799,0.50589251,1843.8,1843.7,12.22715877]
[1746340148325,5.42252414,1844.2,1843.8,5.42354425]
[1746340148517,6.58955196,1844.2,1843.8,5.42354425]
[1746340148717,0.50568759,1844.1,1843.8,5.42354425]
[1746340149216,0.50568759,1844.0,1843.8,5.42354425]
[1746340149750,5.42252414,1844.2,1843.8,5.42354425]
[1746340150345,0.50568573,1844.1,1843.8,5.42354425]
[1746340150827,0.50568573,1844.1,1843.9,4.532]
[1746340151027,5.42252414,1844.2,1843.9,4.532]
[1746340151028,0.50568573,1844.0,1843.9,4.532]
[1746340154337,0.50568573,1844.0,1843.9,12.31221552]
[1746340154518,0.50568573,1844.0,1843.9,14.09120237]
[1746340155457,5.42197518,1844.4,1843.9,19.51448996]
[1746340155665,5.42197518,1844.4,1843.9,17.73550311]
[1746340155861,0.50589332,1844.3,1843.9,17.73550311]
[1746340156225,0.50589332,1844.3,1844.0,5.42297265]
[1746340156560,5.42168315,1844.5,1844.2,0.7953]
[1746340156858,6.18893968,1844.4,1844.1,1.58332793]
[1746340157162,7.85598835,1844.4,1844.1,1.58332793]
[1746340157530,0.50598639,1844.3,1844.1,1.58332793]
[1746340158060,0.50598639,1844.2,1844.1,1.58332793]
[1746340159535,5.92844559,1844.2,1844.0,0.7953]
[1746340159770,0.50598639,1844.2,1844.0,4.531]
[1746340160058,0.50598639,1844.1,1844.0,4.531]
[1746340161954,0.50598639,1844.1,1844.0,5.352]
[1746340162151,0.50598639,1844.1,1844.0,12.35832142]
[1746340162567,0.50598639,1844.1,1844.0,6.93532793]
[1746340164071,0.50598639,1844.1,1844.0,12.35832142]
[1746340164459,0.50598639,1844.1,1844.0,8.71346848]
[1746340164970,0.50598639,1844.1,1844.0,6.93532793]
[1746340165673,0.50598639,1844.1,1844.0,12.35832142]
[1746340167258,6.25423002,1844.6,1844.2,5.42222703]
[1746340167463,6.25423002,1844.6,1844.2,7.00555496]
[1746340167667,0.5062299,1844.5,1844.2,7.00555496]
[1746340167968,0.4562299,1844.5,1844.2,7.00555496]
[1746340168169,0.4562299,1844.4,1844.2,7.00555496]
[1746340168373,0.4562299,1844.4,1844.2,8.24837018]
[1746340168577,6.25423002,1844.6,1844.2,8.24837018]
[1746340168879,6.25423002,1844.6,1844.2,9.04447018]
[1746340169049,0.833,1844.6,1844.2,9.04447018]
[1746340169253,6.25427518,1844.6,1844.2,9.04447018]
[1746340169777,15.92123673,1844.8,1844.3,6.38049126]
[1746340170071,3.62740251,1844.8,1844.5,5.42148358]
[1746340170435,3.62740251,1844.8,1844.4,12.33200749]
[1746340170674,3.62740251,1844.8,1844.4,17.75360074]
[1746340170876,3.62740251,1844.8,1844.5,1.77536007]
[1746340171074,3.62740251,1844.8,1844.6,5.42101647]
[1746340173578,6.25320955,1845.0,1844.6,5.42101647]
[1746340173778,5.42036092,1844.9,1844.5,7.19675687]
[1746340173984,5.42036092,1844.9,1844.5,1.77536007]
[1746340174143,5.42036092,1844.9,1844.5,7.19685484]
[1746340175046,0.833,1845.0,1844.5,7.19676295]
[1746340175276,6.25320869,1845.0,1844.6,5.42111032]
[1746340175576,0.833,1845.0,1844.6,5.42111032]
[1746340176382,0.833,1845.0,1844.6,6.68289765]
[1746340178482,0.833,1845.0,1844.7,5.42092736]
[1746340178679,0.833,1845.0,1844.6,7.47895006]
[1746340179201,5.42001215,1845.1,1843.9,4.19035677]
[1746340179202,0.833,1844.8,1844.2,0.7961]
[1746340179348,5.42151015,1844.6,1844.3,4.53]
[1746340179682,5.42111961,1844.7,1844.3,4.53]
[1746340180282,0.50494675,1844.6,1844.3,4.53]
[1746340180986,0.50494675,1844.5,1844.3,4.53]
[1746340182085,0.50494675,1844.4,1844.3,4.53]
[1746340187016,0.50494675,1844.4,1844.3,5.60484184]
[1746340191411,0.50494675,1844.4,1844.3,11.02695321]
[1746340192781,0.50494675,1844.4,1844.3,11.79255321]
[1746340193410,0.50494675,1844.8,1844.4,5.42169309]
[1746340193895,0.50494675,1844.7,1844.4,5.42169309]
[1746340194082,0.50494675,1844.7,1844.4,7.14311772]
[1746340194282,0.50494675,1844.6,1844.4,7.14311772]
[1746340195023,0.50494675,1844.5,1844.4,7.14311772]
[1746340195619,0.50494675,1844.5,1844.4,1.72142463]
[1746340195920,0.50494675,1844.5,1844.4,7.14324202]
[1746340197788,0.50494675,1844.5,1844.4,8.72656995]
[1746340203833,0.50494675,1844.5,1844.4,8.78077964]
[1746340204035,0.50494675,1844.5,1844.4,9.56447964]
[1746340204527,6.23698829,1845.1,1844.6,5.42105565]
[1746340204702,7.40263552,1845.1,1844.7,4.53]
[1746340204894,0.50649637,1845.0,1844.7,4.53]
[1746340205087,0.50649637,1845.0,1844.7,9.95078181]
[1746340205521,0.50649637,1844.9,1844.7,9.95078181]
[1746340205891,0.50649637,1844.9,1844.7,4.53]
[1746340206086,1.30279637,1844.8,1844.7,4.53]
[1746340206920,6.72343817,1844.8,1844.7,4.53]
[1746340207088,1.30279637,1844.8,1844.7,4.53]
[1746340210042,6.72343817,1844.8,1844.7,4.53]
[1746340211647,6.72343817,1844.8,1844.5,4.53]
[1746340212148,0.50649637,1844.7,1844.5,4.53]
[1746340212347,0.50649637,1844.7,1844.5,10.74380011]
[1746340212649,0.50649637,1844.6,1844.5,4.53]
[1746340217460,0.50649637,1844.6,1844.5,9.95152344]
[1746340217657,0.50649637,1844.6,1844.5,4.53]
[1746340225093,0.50649637,1844.6,1844.3,2.37572793]
[1746340225383,0.50649637,1844.5,1844.3,4.529]
[1746340225761,0.50649637,1844.4,1844.3,4.529]
[1746340227097,0.50649637,1844.4,1844.3,9.95111137]
[1746340227302,0.50649637,1844.4,1844.3,6.10744878]
[1746340227483,6.71436112,1844.4,1844.1,4.529]
[1746340227658,5.92877826,1844.3,1844.1,4.529]
[1746340228182,0.50637906,1844.2,1844.1,4.529]
[1746340228901,0.50637906,1844.2,1844.1,10.76759941]
[1746340229050,0.50637906,1844.2,1844.1,15.59037213]
[1746340229781,5.42096055,1844.7,1844.3,5.42193165]
[1746340230294,0.7859,1844.8,1844.4,5.42172879]
[1746340230295,6.20670875,1844.8,1844.4,5.42172879]
[1746340230594,0.50608476,1844.6,1844.4,5.42172879]
[1746340230803,0.50608476,1844.7,1844.4,7.00494317]
[1746340231175,0.50608476,1844.7,1844.5,4.529]
[1746340231500,6.20664803,1844.8,1844.5,4.529]
[1746340231501,0.50608476,1844.6,1844.5,4.529]
[1746340233572,0.50608476,1844.6,1844.5,11.91071776]
[1746340234201,0.50608476,1844.6,1844.5,14.91071776]
[1746340235096,0.50608476,1844.6,1844.5,15.32438897]
[1746340237601,0.50608476,1844.6,1844.5,16.9077169]
[1746340237769,0.50608476,1845.0,1844.9,6.19984798]
[1746340237970,0.50608476,1845.0,1844.9,12.93116071]
[1746340238190,0.50608476,1845.0,1844.9,7.51081273]
[1746340238395,0.50608476,1845.0,1844.9,12.98535387]
[1746340238574,0.50608476,1845.0,1844.9,15.93116071]
[1746340238780,3.62740251,1845.2,1844.9,15.93116071]
[1746340239067,3.62740251,1845.2,1845.0,1.59311607]
[1746340239269,0.50572524,1845.1,1845.0,1.59311607]
[1746340239804,0.50572524,1845.1,1845.0,1.64730877]
[1746340240209,0.50572524,1845.1,1845.0,7.79267027]
[1746340240375,0.50572524,1845.1,1845.0,2.37261607]
[1746340240781,0.50572524,1845.1,1845.0,10.79267027]
[1746340241106,3.62740251,1845.4,1845.2,6.19896248]
[1746340241274,3.62740251,1845.4,1845.3,6.73122418]
[1746340242473,3.62740251,1845.4,1845.3,7.14444328]
[1746340244324,5.41871392,1845.5,1845.3,7.14444328]
[1746340244610,5.41846195,1845.6,1845.3,7.14444328]
[1746340244772,5.41846195,1845.6,1845.4,0.71444433]
[1746340245412,0.50411431,1845.5,1845.3,7.14444328]
[1746340245780,5.41887937,1845.4,1845.1,1.58332793]
[1746340245979,5.4194593,1845.3,1845.2,4.526]
[1746340246421,5.41906065,1845.4,1845.2,4.526]
[1746340248732,6.22051694,1845.5,1845.2,4.526]
[1746340248910,11.63936604,1845.5,1845.2,4.526]
[1746340249214,11.63936604,1845.5,1845.2,5.17745177]
[1746340249420,0.50366719,1845.4,1845.2,5.17745177]
[1746340249619,5.92255303,1845.4,1845.2,5.17745177]
[1746340249779,5.41888584,1845.4,1845.2,5.17745177]
[1746340250688,5.41917303,1845.3,1845.2,5.17745177]
[1746340250918,5.41917303,1845.3,1845.2,4.526]
[1746340251427,6.20327303,1845.3,1845.0,1.59311607]
[1746340251653,6.20327303,1845.3,1844.6,8.16635677]
[1746340251654,5.42093565,1844.7,1844.6,8.16635677]
[1746340251929,5.42093565,1844.7,1844.6,4.526]
[1746340252135,6.20503565,1844.7,1844.6,4.526]
[1746340252493,6.70843573,1844.7,1844.6,4.526]
[1746340252880,9.70843573,1844.7,1844.6,4.526]
[1746340253331,3.50340008,1844.7,1844.6,4.526]
[1746340253491,3.50340008,1844.7,1844.6,4.9786]
[1746340253691,3.0,1844.7,1844.6,4.9786]
[1746340253891,3.0,1844.7,1844.6,4.526]
[1746340254326,8.42093565,1844.7,1844.6,4.526]
[1746340254626,6.24094232,1844.6,1844.4,3.64035677]
[1746340256097,6.24094232,1844.6,1844.3,4.526]
[1746340258930,0.8196,1844.6,1844.3,4.526]
[1746340259091,0.8196,1844.6,1844.4,0.4526]
[1746340261040,6.24098786,1844.6,1844.3,4.526]
[1746340261617,0.8196,1844.6,1844.3,4.526]
[1746340261818,0.8196,1844.6,1844.4,1.58332793]
[1746340262331,6.24084825,1844.6,1844.4,1.58332793]
[1746340263231,0.8196,1844.6,1844.4,1.58332793]
[1746340263738,3.8134,1845.0,1844.5,0.8248]
[1746340263905,0.50353136,1844.9,1844.6,1.58332793]
[1746340264109,0.50353136,1844.9,1844.7,4.527]
[1746340264305,5.42039645,1844.9,1844.7,4.527]
[1746340265104,5.9241306,1844.8,1844.7,4.527]
[1746340265305,7.05858331,1844.8,1844.7,4.527]
[1746340265702,7.05858331,1844.8,1844.4,1.58332793]
[1746340265703,5.42129429,1844.6,1844.4,1.58332793]
[1746340265895,5.42129429,1844.6,1844.4,6.11032793]
[1746340266223,5.42107222,1844.7,1844.4,6.11032793]
[1746340266224,5.42106837,1844.7,1844.4,6.11032793]
[1746340266703,5.42136069,1844.6,1844.4,6.11032793]
[1746340267104,10.84285301,1844.6,1844.4,6.11032793]
[1746340267396,5.42152344,1844.5,1844.4,4.527]
[1746340268039,6.24682344,1844.5,1844.4,4.527]
[1746340268933,0.8253,1844.5,1844.4,4.527]
[1746340269236,5.42133772,1844.6,1844.4,4.527]
[1746340270516,6.24641452,1844.7,1844.4,4.527]
[1746340271195,0.5032068,1844.6,1844.4,4.527]
[1746340271620,11.66759155,1844.7,1844.4,4.527]
[1746340271823,6.24641452,1844.7,1844.4,4.527]
[1746340272540,0.50346497,1844.6,1844.4,4.527]
[1746340273036,6.24641452,1844.7,1844.4,4.527]
[1746340273237,5.42142214,1844.6,1844.4,4.527]
[1746340273603,5.42152344,1844.5,1844.4,4.527]
[1746340273803,5.9251331,1844.5,1844.4,4.527]
[1746340275638,0.50360966,1844.5,1844.4,4.527]
[1746340280110,5.9251331,1844.5,1844.4,4.527]
[1746340286619,0.7875,1844.4,1844.0,1.58332793]
[1746340286921,0.7875,1844.4,1844.1,4.532]
[1746340287117,5.92583835,1844.3,1844.1,4.532]
[1746340287638,0.50360966,1844.2,1844.1,4.532]
[1746340289821,5.92601503,1844.2,1844.1,4.532]
[1746340292073,5.42299349,1844.0,1843.8,4.532]
[1746340292354,11.63338682,1844.1,1843.8,4.532]
[1746340292658,0.50360966,1844.0,1843.8,4.532]
[1746340293062,0.50360966,1844.0,1843.8,9.95547283]
[1746340293246,0.50360966,1843.9,1843.8,9.95557892]
[1746340293443,0.50360966,1843.9,1843.8,4.532]
[1746340293849,0.50360966,1843.9,1843.7,19.544]
[1746340293850,5.42358173,1843.8,1843.7,19.544]
[1746340294038,5.92719139,1843.8,1843.7,19.544]
[1746340296567,5.92719139,1843.8,1843.6,4.532]
[1746340297145,0.50360966,1843.7,1843.6,4.532]
[1746340298263,0.50351781,1843.7,1843.6,4.532]
[1746340302037,5.92739371,1843.7,1843.6,4.532]
[1746340302473,0.50351781,1843.7,1843.6,4.532]
[1746340302773,5.92739371,1843.7,1843.6,4.532]
[1746340307887,5.42457613,1843.5,1843.4,4.529]
[1746340308182,5.42446433,1843.5,1843.4,4.529]
[1746340308575,5.92798214,1843.5,1843.4,4.529]
[1746340309858,0.50351781,1843.5,1843.4,4.529]
[1746340311001,5.42532504,1843.3,1843.2,4.529]
[1746340311205,1.72172688,1843.5,1843.2,4.529]
[1746340311500,0.50351781,1843.4,1843.2,4.529]
[1746340311875,5.42461203,1843.5,1843.2,4.529]
[1746340312206,10.84936187,1843.5,1843.2,4.529]
[1746340312501,5.42488405,1843.4,1843.2,4.529]
[1746340312704,6.22045289,1843.3,1843.2,4.529]
[1746340313000,7.88820396,1843.3,1843.2,4.529]
[1746340314502,7.88817779,1843.3,1843.2,4.529]
[1746340315779,5.42563418,1843.2,1842.9,24.4893629]
[1746340316501,5.42568842,1843.1,1842.9,24.4893629]
[1746340316996,5.42568842,1843.1,1842.9,19.9593629]
[1746340317296,5.42553113,1843.2,1842.9,24.4893629]
[1746340317502,0.50334794,1843.1,1842.9,24.4893629]
[1746340317899,5.42553113,1843.2,1842.9,24.4893629]
[1746340318079,5.42566869,1843.1,1842.9,24.4893629]
[1746340318706,5.42548502,1843.2,1842.9,24.4893629]
[1746340319003,5.92864612,1843.1,1842.9,24.4893629]
[1746340319417,0.50298416,1843.1,1842.9,24.4893629]
[1746340319580,5.4255373,1843.2,1842.9,24.4893629]
[1746340319904,5.4255373,1843.2,1842.9,4.9413629]
[1746340320113,5.42569895,1843.1,1842.9,4.9413629]
[1746340321308,5.42553822,1843.2,1842.9,4.9413629]
[1746340321605,0.50356706,1843.1,1842.9,4.9413629]
[1746340322315,5.42553822,1843.2,1842.9,4.9413629]
[1746340322816,5.42568292,1843.1,1842.9,4.9413629]
[1746340323520,5.92987389,1843.0,1842.9,4.9413629]
[1746340323818,0.50393792,1843.0,1842.9,4.9413629]
[1746340324024,5.92987389,1843.0,1842.9,4.9413629]
[1746340324313,5.92987389,1843.0,1842.9,0.4113629]
[1746340324688,0.50393792,1843.0,1842.9,0.4113629]
[1746340326524,5.92987389,1843.0,1842.9,0.4113629]
[1746340326824,0.50393792,1843.0,1842.9,0.4113629]
[1746340328021,5.92987389,1843.0,1842.9,0.4113629]
[1746340328615,7.14227434,1843.0,1842.9,0.4113629]
[1746340334722,5.92987389,1843.0,1842.9,0.4113629]
[1746340348445,6.71557389,1843.0,1842.9,0.4113629]
[1746340353722,9.71557389,1843.0,1842.9,0.4113629]
[1746340355565,9.71557389,1843.0,1842.9,1e-08]
[1746340355566,11.84890182,1843.0,1842.9,1e-08]
[1746340358165,17.88890182,1843.0,1842.9,1e-08]
[1746340358370,20.79196031,1843.0,1842.9,1e-08]
[1746340358570,20.24196031,1843.0,1842.9,1e-08]
[1746340358734,18.65863238,1843.0,1842.9,1e-08]
[1746340359266,19.20863238,1843.0,1842.9,1e-08]
[1746340359480,20.79196031,1843.0,1842.9,1e-08]
[1746340360549,19.20863238,1843.0,1842.9,1e-08]
[1746340365475,18.70469446,1843.0,1842.9,1e-08]
[1746340365676,19.20960492,1843.0,1842.9,1e-08]
[1746340366684,17.87390492,1843.0,1842.9,1e-08]
[1746340366890,14.97084643,1843.0,1842.9,1e-08]
[1746340369295,11.97084643,1843.0,1842.9,1e-08]
[1746340373780,12.75694643,1843.0,1842.9,1e-08]
[1746340378802,11.97084643,1843.0,1842.9,1e-08]
[1746340381521,5.93084643,1843.0,1842.9,1e-08]
[1746340381906,0.50491046,1843.0,1842.9,1e-08]
[1746340382415,5.93084643,1843.0,1842.9,1e-08]
[1746340384381,0.50491046,1843.0,1842.9,1e-08]
[1746340385021,5.93084643,1843.0,1842.9,1e-08]
[1746340385723,0.50491046,1843.0,1842.9,1e-08]
[1746340385909,0.50491046,1843.0,1842.9,2.37792794]
[1746340386117,0.50491046,1843.0,1842.9,7.80415833]
[1746340386297,0.50491046,1843.0,1842.9,9.12721587]
[1746340386486,3.62740251,1843.4,1843.1,5.42555223]
[1746340386800,3.62740251,1843.4,1843.3,0.7946]
[1746340387414,4.13220057,1843.4,1843.3,0.7946]
[1746340388209,9.55695916,1843.4,1843.3,0.7946]
[1746340389426,4.13220057,1843.4,1843.3,0.7946]
[1746340391628,0.50479806,1843.4,1843.3,0.7946]
[1746340391815,5.92955665,1843.4,1843.3,0.7946]
[1746340393596,5.42505289,1843.3,1843.2,4.53]
[1746340393930,5.42505289,1843.3,1842.9,0.79460001]
[1746340393931,5.42593597,1843.0,1842.9,0.79460001]
[1746340394231,5.42593597,1843.0,1842.9,1e-08]
[1746340394794,5.93073403,1843.0,1842.9,1e-08]
[1746340396023,0.50479806,1843.0,1842.9,1e-08]
[1746340396404,5.93073403,1843.0,1842.9,1e-08]
[1746340397217,0.50479806,1843.0,1842.9,1e-08]
[1746340398535,5.93073403,1843.0,1842.9,1e-08]
[1746340399826,0.50479806,1843.0,1842.9,1e-08]
[1746340402299,6.52378223,1843.0,1842.9,1e-08]
[1746340403235,5.93073403,1843.0,1842.9,1e-08]
[1746340403444,0.50479806,1843.0,1842.9,1e-08]
[1746340403654,5.93073403,1843.0,1842.9,1e-08]
[1746340403834,0.50479806,1843.0,1842.9,1e-08]
[1746340405816,5.93073403,1843.0,1842.9,1e-08]
[1746340406126,0.50479806,1843.0,1842.9,1e-08]
[1746340408747,5.93073403,1843.0,1842.9,1e-08]
[1746340409210,7.0663866,1843.0,1842.9,1e-08]
[1746340410971,0.50479806,1843.0,1842.9,1e-08]
[1746340414677,5.93073403,1843.0,1842.9,1e-08]
[1746340421878,0.50479806,1843.0,1842.9,1e-08]
[1746340422178,0.50479806,1843.0,1842.9,0.79940001]
[1746340423292,0.50479806,1843.0,1842.9,6.2256304]
[1746340423460,0.50479806,1843.0,1842.9,8.00205622]
[1746340424067,5.42476256,1843.4,1843.0,5.42583694]
[1746340424272,5.42476256,1843.4,1843.1,0.7994]
[1746340424474,0.50493789,1843.3,1843.2,4.528]
[1746340435454,0.50493789,1843.3,1843.2,9.95334722]
[1746340435669,0.50493789,1843.3,1843.2,11.57659875]
[1746340435899,0.50493789,1843.3,1843.2,6.15125153]
[1746340437299,0.50493789,1843.3,1843.2,11.57659875]
[1746340438064,0.50493789,1843.3,1842.9,2.54452583]
[1746340438388,5.42564158,1843.1,1843.0,4.525]
[1746340438897,0.50493789,1843.1,1843.0,4.525]